Cogmind - Beta 13 @@@ ROGUE MODE // 2024.04.18 @ 14:31:08 Player: lazy_engineer Result: Self-destructed Performance ------------- Evolutions (3) 1500 Regions Visited (7) 1400 Robots Destroyed (27) 135 Value Destroyed (622) 622 Prototype IDs (24) 480 Alien Tech Used (0) 0 Bonus (1027) 1027 TOTAL SCORE: 5164 Bonus ------- Follower Combat Kills 227 Entered DSFs 500 Aligned with FarCom 300 Cogmind --------- Core Integrity 568/700 Matter 215/300 Energy 27/100 System Corruption 0% Temperature Cool (0) Movement Flying (109) Ox1 Location -7/DSF Parts ------- > --- POWER (1) -------- (None) > --- PROPULSION (6) --- VTOL Module VTOL Module VTOL Module > --- UTILITY (4) ------ Large Storage Unit Transport Network Coupler Transmission Jammer > --- WEAPON (2) ------- (None) > --- INVENTORY (15) --- Backup Power I Advanced Weight Redist. System Sensor Array Signal Interpreter Improved Terrain Scanner Advanced Terrain Scan Processor Advanced Terrain Scan Processor Advanced Terrain Scan Processor Transmission Jammer Hacking Suite Assault Rifle Rocket Launcher Datajack Peak State ------------ > --- POWER ------------ Ion Engine > --- PROPULSION ------- Medium Treads Medium Treads Medium Treads Medium Treads > --- UTILITY ---------- Large Storage Unit Advanced Weight Redist. System Transport Network Coupler Transmission Jammer > --- WEAPON ----------- Rocket Launcher Flail > --- INVENTORY -------- Advanced Weight Redist. System Sensor Array Signal Interpreter Improved Terrain Scan Processor Improved Terrain Scan Processor Improved Terrain Scan Processor Transmission Jammer Hacking Suite Decoy Drone Bay Assault Rifle Grenade Launcher Datajack [Rating: 33] Favorites ----------- Power Ion Engine Engine Ion Engine Propulsion Light Treads Treads Light Treads Wheel Wheel Flight Unit VTOL Module Utility Transport Network Coupler Device Transmission Jammer Storage Large Storage Unit Processor Transport Network Coupler Weapon Assault Rifle Energy Gun Backup Laser I Ballistic Gun Assault Rifle Launcher Rocket Launcher Impact Weapon Hammer Build | -11 -10 -10 -10 -9 -8 -7 -7 ------- Run | Yrd Mat Min Exi Min Mat Fac DSF Slots Evolved 6 | . . . . . 4 2 . Power . | . . . . . . . . Propulsion 4 | . . . . . 2 2 . Utility 2 | . . . . . 2 . . Weapon . | . . . . . . . . Parts Attached 38 | 6 6 6 1 . 9 8 2 Power 6 | 1 1 1 . . . 2 1 Engine 6 | 1 1 1 . . . 2 1 Core . | . . . . . . . . Reactor . | . . . . . . . . Propulsion 16 | 2 2 1 . . 4 6 1 Treads 7 | 1 1 1 . . 4 . . Leg . | . . . . . . . . Wheel 2 | 1 1 . . . . . . Hover . | . . . . . . . . Flight 7 | . . . . . . 6 1 Utility 7 | 1 2 . 1 . 3 . . Device 3 | . . . . . 3 . . Storage 2 | 1 . . 1 . . . . Processor 2 | . 2 . . . . . . Hackware . | . . . . . . . . Protection . | . . . . . . . . Artifact . | . . . . . . . . Weapon 9 | 2 1 4 . . 2 . . Energy Gun . | . . . . . . . . Energy Cannon . | . . . . . . . . Ballistic Gun 5 | 2 1 2 . . . . . Ballistic Cannon . | . . . . . . . . Launcher 2 | . . 1 . . 1 . . Special Weapon . | . . . . . . . . Impact Weapon 2 | . . 1 . . 1 . . Slashing Weapon . | . . . . . . . . Piercing Weapon . | . . . . . . . . Special Melee Weapon . | . . . . . . . . Unidentified Prototypes 1 | . . . . . 1 . . Parts Lost 5 | . . 2 . . . . 3 Power 3 | . . 1 . . . . 2 Propulsion 2 | . . 1 . . . . 1 Utility . | . . . . . . . . Weapon . | . . . . . . . . Highest Loss Streak 3 | . . 2 . . . . 3 To Critical Strikes . | . . . . . . . . Average Slot Usage (%) 93 | . 92 98 100 100 84 96 86 Engine 11 | . 14 13 14 14 9 7 5 Treads 19 | . 15 17 28 28 27 . . Wheel 4 | . 12 9 . . . . . Flight 6 | . . . . . . 45 44 Device 5 | . . . . . 11 15 15 Storage 11 | . 14 14 14 14 9 7 7 Processor 10 | . 7 14 14 14 9 7 7 Ballistic Gun 11 | . 28 13 14 14 3 . . Launcher 2 | . . 1 . . 5 4 . Impact Weapon 8 | . . 13 14 14 9 7 5 Naked Turns . | . . . . . . . . Heaviest Build 43 | 12 12 16 29 29 43 33 33 Greatest Support 112 | 10 40 20 40 40 112 33 33 Greatest Overweight (x) 3 | 1 1 3 . . 1 1 . Average Overweight (x) . | . . . . . . . . Largest Inventory Capacity 15 | 8 8 8 15 15 15 15 15 Average Capacity 11 | 6 8 8 11 15 15 15 15 Most Carried 15 | 5 8 8 11 10 15 15 15 Average Carried 9 | 3 5 7 8 10 12 9 13 Final Capacity 15 | 8 8 8 15 15 15 15 15 Final Carried 15 | 4 8 8 11 10 15 12 13 Class Distribution -------------------- 93% | Mutant 6% | Sprinter Dominant Class ---------------- Mutant | -10/Materials Mutant | -10/Mines Mutant | -10/Exiles Mutant | -9/Mines Mutant | -8/Materials Mutant | -7/Factory Sprinter | -7/DSF Resources | -11 -10 -10 -10 -9 -8 -7 -7 ----------- Run | Yrd Mat Min Exi Min Mat Fac DSF Matter Collected 838 | 197 385 137 . 29 90 . . Remotely . | . . . . . . . . Salvage Created 1031 | . 394 232 . . 405 . . Parts 44 | . 29 9 . . 6 . . Haulers Intercepted 1 | . 1 . . . . . . Recyclers Shooed . | . . . . . . . . Parts Field Recycled . | . . . . . . . . Retrieved Matter . | . . . . . . . . Parts Self-Destructed . | . . . . . . . . Prevented . | . . . . . . . . Kills | -11 -10 -10 -10 -9 -8 -7 -7 ------- Run | Yrd Mat Min Exi Min Mat Fac DSF Combat Hostiles Destroyed 17 | . 7 6 . . 4 . . Melee 3 | . . 3 . . . . . Guns 8 | . 7 1 . . . . . AOE 1 | . . 1 . . . . . Classes Destroyed 10 | . 7 2 . . 1 . . Worker 1 | . 1 . . . . . . Tunneler 1 | . . 1 . . . . . Hauler 1 | . 1 . . . . . . Recycler 3 | . . 1 . . 2 . . Mechanic 1 | . 1 . . . . . . Operator 1 | . 1 . . . . . . Watcher 2 | . 1 . . . 1 . . Swarmer 6 | . 2 4 . . . . . Grunt 9 | . 5 2 . . 2 . . Sentry 2 | . . . . . 2 . . Best Kill Streak 7 | . 7 3 . . 2 . . Combat Bots Only 7 | . 7 3 . . 2 . . Max Kills in Single Turn 1 | . 1 1 . . 1 . . Gunslinging . | . . . . . . . . Exploded 1 | . . 1 . . . . . Melee 1 | . . 1 . . . . . Uniques/NPCs Destroyed . | . . . . . . . . Combat | -11 -10 -10 -10 -9 -8 -7 -7 -------- Run | Yrd Mat Min Exi Min Mat Fac DSF Hostile Shots Fired 127 | . 38 31 . 7 34 . 17 Missed 39 | . 13 9 . 1 10 . 6 Damage Taken 1326 | . 337 222 . 86 364 . 317 Core 286 | . 53 49 . 34 18 . 132 Absorbed by Shields 5 | . . . . . . . 5 Core Remaining (%) 80 | 100 . . . 45 96 . . Volleys Fired 61 | . 51 10 . . . . . Largest 2 | . 2 1 . . . . . Hottest 40 | . 40 33 . . . . . Shots Fired 112 | . 102 10 . . . . . Gun 109 | . 102 7 . . . . . Cannon . | . . . . . . . . Launcher 3 | . . 3 . . . . . Special . | . . . . . . . . Kinetic 109 | . 102 7 . . . . . Thermal . | . . . . . . . . Explosive 3 | . . 3 . . . . . Electromagnetic . | . . . . . . . . Robot Hit Streak 10 | . 10 2 . . . . . Robot Miss Streak 3 | . 3 1 . . . . . Penetration Max . | . . . . . . . . Secondary Targets 2 | . 2 . . . . . . Max Gunslinging Chain 1 | . 1 . . . . . . Shots Hit Robots 100 | . 67 17 . . 16 . . Core Hits 29 | . 24 5 . . . . . Critical Kills . | . . . . . . . . Critical Parts Destroyed 6 | . 1 1 . . 4 . . Critical Strikes 6 | . 1 1 . . 4 . . Destroy 1 | . 1 . . . . . . Smash 5 | . . 1 . . 4 . . Melee Attacks 43 | . . 15 . 1 27 . . Impact 43 | . . 15 . 1 27 . . Slashing . | . . . . . . . . Piercing . | . . . . . . . . Sneak Attacks 5 | . . 3 . . 2 . . Combat Hostiles . | . . . . . . . . Follow-up Attacks . | . . . . . . . . Damage Inflicted 1934 | . 842 516 . . 576 . . Guns 893 | . 842 51 . . . . . Cannons . | . . . . . . . . Explosions 89 | . . 89 . . . . . Melee 952 | . . 376 . . 576 . . Ramming . | . . . . . . . . Kinetic 893 | . 842 51 . . . . . Thermal . | . . . . . . . . Explosive 89 | . . 89 . . . . . Electromagnetic . | . . . . . . . . Impact 952 | . . 376 . . 576 . . Slashing . | . . . . . . . . Piercing . | . . . . . . . . Highest Corruption . | . . . . . . . . Average Corruption . | . . . . . . . . Corruption Purged . | . . . . . . . . Corruption Blocked . | . . . . . . . . Overload Shots . | . . . . . . . . Overflow Damage 310 | . . 91 . . 219 . . Projectiles . | . . . . . . . . Explosions . | . . . . . . . . Melee 310 | . . 91 . . 219 . . Knockbacks 2 | . . . . . 2 . . Impact 2 | . . . . . 2 . . Kinetic . | . . . . . . . . Secondary . | . . . . . . . . Self-Inflicted Damage . | . . . . . . . . Shots . | . . . . . . . . Rammed . | . . . . . . . . Targets Rammed . | . . . . . . . . Kicked . | . . . . . . . . Crushed . | . . . . . . . . Highest Temperature 63 | . 28 . . . . 63 . Average Temperature 19 | . 9 . . . . 23 . Received Heat Transfer 423 | . 186 57 . 45 135 . . Siege Activations . | . . . . . . . . Robots Corrupted . | . . . . . . . . Combat Hostiles . | . . . . . . . . Parts Fried 11 | . . 2 . . 9 . . Impact Corruptions 17 | . . 7 . . 10 . . Robots Melted . | . . . . . . . . Combat Hostiles . | . . . . . . . . Parts Melted . | . . . . . . . . Heat Transferred . | . . . . . . . . Parts Sabotaged . | . . . . . . . . Parts Stolen . | . . . . . . . . Parts Stripped . | . . . . . . . . Power Chain Reactions . | . . . . . . . . Alert | -11 -10 -10 -10 -9 -8 -7 -7 ------- Run | Yrd Mat Min Exi Min Mat Fac DSF Peak Influence 264 | . 264 210 . 71 184 61 57 Initial 56 | . . 35 . . 27 56 42 Average 88 | . 140 113 . 67 60 60 38 Maximum Alert Level 1 | . 1 1 . . . . . Low Security (%) 86 | 100 60 76 . 100 100 100 100 Level 1 13 | . 39 23 . . . . . Level 2 . | . . . . . . . . Level 3 . | . . . . . . . . Level 4 . | . . . . . . . . Level 5 . | . . . . . . . . High Security . | . . . . . . . . Max Security . | . . . . . . . . Squads Dispatched 3 | . 1 . . . . . 2 Investigation . | . . . . . . . . Extermination . | . . . . . . . . Reinforcement 3 | . 1 . . . . . 2 Assault . | . . . . . . . . Garrison . | . . . . . . . . Intercept . | . . . . . . . . Searches Triggered . | . . . . . . . . Construction Impeded . | . . . . . . . . Haulers Reinforced . | . . . . . . . . Active Scanning Responses . | . . . . . . . . Cargo Convoy Interrupts . | . . . . . . . . Stealth | -11 -10 -10 -10 -9 -8 -7 -7 --------- Run | Yrd Mat Min Exi Min Mat Fac DSF Distress Signals 2 | . . . . . 2 . . Communications Jammed . | . . . . . . . . Distress Signals . | . . . . . . . . Times Spotted 50 | . 19 10 . 2 14 . 5 Peak Tracking Total 5 | . 4 3 . 2 5 . 5 Tactical Retreats 5 | . 1 1 . . 2 . 1 Traps | -11 -10 -10 -10 -9 -8 -7 -7 ------- Run | Yrd Mat Min Exi Min Mat Fac DSF Traps Triggered 2 | . 1 . . . . . 1 Indirectly . | . . . . . . . . Trap Hack Attempts . | . . . . . . . . Triggered . | . . . . . . . . Disarmed . | . . . . . . . . Reprogrammed . | . . . . . . . . Reused . | . . . . . . . . Traps Extracted . | . . . . . . . . Installed . | . . . . . . . . Triggered . | . . . . . . . . Machines | -11 -10 -10 -10 -9 -8 -7 -7 ---------- Run | Yrd Mat Min Exi Min Mat Fac DSF Machines Disabled . | . . . . . . . . Max in Single Turn . | . . . . . . . . Machines Repaired . | . . . . . . . . Machines Dismantled . | . . . . . . . . Machines Sabotaged . | . . . . . . . . Overloaded Fab Kills . | . . . . . . . . Hacking | -11 -10 -10 -10 -9 -8 -7 -7 --------- Run | Yrd Mat Min Exi Min Mat Fac DSF Machines Accessed 10 | . 4 1 1 . 2 2 . Terminals 7 | . 4 . . . 2 1 . Fabricators . | . . . . . . . . Repair Stations 1 | . . . . . . 1 . Recycling Units . | . . . . . . . . Scanalyzers . | . . . . . . . . Garrison Access . | . . . . . . . . Total Hacks 23 | . 11 1 1 . 8 2 . Successful 11 | . 3 1 1 . 4 2 . Failed 12 | . 8 . . . 4 . . Catastrophic 2 | . 1 . . . 1 . . Database Lockouts . | . . . . . . . . Manual 17 | . 9 . 1 . 7 . . Terminals 20 | . 11 . . . 8 1 . Fabricators . | . . . . . . . . Repair Stations 1 | . . . . . . 1 . Recycling Units . | . . . . . . . . Scanalyzers . | . . . . . . . . Garrison Access . | . . . . . . . . Terminal Hacks 9 | . 2 1 1 . 4 1 . Open Door 1 | . . 1 . . . . . Open DSF 1 | . . . . . . 1 . Level Access Points 1 | . . . . . 1 . . Branch Access Points 1 | . . . . . 1 . . Hauler Manifests 2 | . 1 . . . 1 . . Zone Layout 2 | . 1 . . . 1 . . Derelict Proto ID Bank 1 | . . . 1 . . . . Fabricator Hacks . | . . . . . . . . Repair Station Hacks 1 | . . . . . . 1 . Refit 1 | . . . . . . 1 . Recycling Unit Hacks . | . . . . . . . . Scanalyzer . | . . . . . . . . Garrison Access Hacks . | . . . . . . . . Unauthorized Hacks 1 | . 1 . . . . . . Terminals 1 | . 1 . . . . . . Operators 1 | . 1 . . . . . . Fabricators . | . . . . . . . . Repair Stations . | . . . . . . . . Recycling Units . | . . . . . . . . Scanalyzers . | . . . . . . . . Garrison Access . | . . . . . . . . Data Cores Recovered . | . . . . . . . . Used . | . . . . . . . . Hacking Detections 6 | . 4 . . . 2 . . Full Trace Events . | . . . . . . . . Feedback Events . | . . . . . . . . Feedback Blocked . | . . . . . . . . Robot Schematics Acquired . | . . . . . . . . Robots Built . | . . . . . . . . Authchips . | . . . . . . . . Time . | . . . . . . . . Total Robot Build Rating . | . . . . . . . . Part Schematics Acquired . | . . . . . . . . Parts Built . | . . . . . . . . Authchips . | . . . . . . . . Time . | . . . . . . . . Total Part Build Rating . | . . . . . . . . Parts Repaired . | . . . . . . . . Time . | . . . . . . . . Parts Recycled . | . . . . . . . . Recycled Matter . | . . . . . . . . Retrieved Matter . | . . . . . . . . Retrieved Components . | . . . . . . . . Parts Scanalyzed . | . . . . . . . . Part Schematics Acquired . | . . . . . . . . Parts Damaged . | . . . . . . . . Bothacking | -11 -10 -10 -10 -9 -8 -7 -7 ------------ Run | Yrd Mat Min Exi Min Mat Fac DSF Used RIF Installer . | . . . . . . . . Robots Hacked . | . . . . . . . . Non-combat . | . . . . . . . . Combat . | . . . . . . . . Robot Hacks Applied . | . . . . . . . . Relay Couplers Released . | . . . . . . . . Fabnet Peak Effective % . | . . . . . . . . Robots Rewired . | . . . . . . . . Allies Hacked . | . . . . . . . . Hacks Repelled . | . . . . . . . . Allies | -11 -10 -10 -10 -9 -8 -7 -7 -------- Run | Yrd Mat Min Exi Min Mat Fac DSF Total Allies . | . . . . . . . . Largest Group . | . . . . . . . . Highest-Rated Group . | . . . . . . . . Highest-Rated Ally . | . . . . . . . . Total Orders 4 | . . . . . 4 . . EXPLORE 3 | . . . . . 3 . . RETURN 1 | . . . . . 1 . . Ally Attacks 31 | . . . . 5 26 . . Total Damage 1638 | . . . . 241 1397 . . Kills 12 | . . . . 2 10 . . Allies Corrupted . | . . . . . . . . Allies Melted . | . . . . . . . . Turrets Deployed 3 | . . . . 1 2 . . Intel | -11 -10 -10 -10 -9 -8 -7 -7 ------- Run | Yrd Mat Min Exi Min Mat Fac DSF Robot Analysis Total . | . . . . . . . . Derelict Logs Recovered 2 | . . 1 . 1 . . . Drone Launches 17 | . . . . . 17 . . Drone Recoveries 1 | . . . . . 1 . . Exploration | -11 -10 -10 -10 -9 -8 -7 -7 ------------- Run | Yrd Mat Min Exi Min Mat Fac DSF Turns Passed 3167 | 45 577 547 596 107 862 385 48 Spaces Moved 1849 | 38 368 427 363 65 313 199 76 Core 12 | 11 . 1 . . . . . Treads 840 | . 17 82 363 65 313 . . Legs . | . . . . . . . . Wheels 722 | 27 351 344 . . . . . Hover . | . . . . . . . . Flight 275 | . . . . . . 199 76 Fastest Speed 20 | 50 95 95 160 160 160 20 20 Average Speed 115 | 77 98 107 160 160 164 36 20 Slowest Speed 240 | 95 160 200 160 160 240 100 23 Overloaded Moves . | . . . . . . . . Propulsion Burnouts . | . . . . . . . . Robots Hopped 5 | . . . . 5 . . . Cave-ins Triggered . | . . . . . . . . Exploration Rate (%) 42 | 4 60 81 60 14 40 4 75 Regions Visited 7 Branch Regions 3 Pre-discovered Areas 1 | . . . . 1 . . . Known Exits Taken 2 | . . . . . 1 1 . Unknown Exits Taken 5 | 1 1 1 1 1 . . . Scrap Searched 1 | . . 1 . . . . . Spaces Dug 3 | . . . . . 3 . . Terrain Destroyed 35 | . . 32 . . 3 . . Melee 3 | . . . . . 3 . . Projectile . | . . . . . . . . AOE 32 | . . 32 . . . . . Terrain Rammed . | . . . . . . . . Walls Destroyed . | . . . . . . . . Machines Disabled . | . . . . . . . . Actions | -11 -10 -10 -10 -9 -8 -7 -7 --------- Run | Yrd Mat Min Exi Min Mat Fac DSF Total 2697 | 53 481 476 379 62 624 513 109 Wait 628 | . 45 15 12 1 247 299 9 Move 1832 | 37 367 426 362 54 312 198 76 Hop 5 | . . . . 5 . . . Pick Up 48 | 10 9 2 3 . 19 1 4 Fast Attach 1 | . . 1 . . . . . Attach 24 | 6 1 1 . . 8 6 2 Detach 3 | . . . . . 1 2 . Swap 13 | . 5 4 1 . 1 2 . Drop 22 | . 3 2 1 1 9 5 1 Fire 61 | . 51 10 . . . . . Melee 43 | . . 15 . 1 27 . . Ram . | . . . . . . . . Kick . | . . . . . . . . Crush . | . . . . . . . . Escape Stasis 17 | . . . . . . . 17 Rewire . | . . . . . . . . Trap . | . . . . . . . . Miscellaneous . | . . . . . . . . Route ------- -11/Scrapyard -10/Materials (discovered 3 exits: [*Mat x2] / *Min) -10/Mines -10/Exiles -9/Mines -8/Materials (discovered 3 exits: *Fac x3) -7/Factory -7/DSF (discovered 1 exit: [*Fac]) History --------- Turn | Location | Event 15 | -11/Scrapyard | Discovered new exit (range 16) 46 | -11/Scrapyard | Entered Materials 240 | -10/Materials | Destroyed 7 combat bots 309 | -10/Materials | Build established: Mutant 348 | -10/Materials | Discovered new exit (range 8) 461 | -10/Materials | Discovered new exit (range 16) 576 | -10/Materials | Discovered new exit (range 3) 623 | -10/Materials | Entered Mines 640 | -10/Mines | Met a Derelict bent on vengeance 686 | -10/Mines | Found the Drone Emporium 697 | -10/Mines | Found Prototype Device 1019 | -10/Mines | Received a Rocket Launcher from a helpful Derelict 1125 | -10/Mines | Learned location of 1 exit from Materials 1163 | -10/Mines | Deemed a non-threat by the Exiles lab entrance 1163 | -10/Mines | Discovered new exit (range 5) 1170 | -10/Mines | Entered Exiles 1209 | -10/Exiles | Met 8R-AWN 1238 | -10/Exiles | Met EX-HEX 1281 | -10/Exiles | Met EX-BIN 1304 | -10/Exiles | Aligned with FarCom system 1306 | -10/Exiles | Given EX-Vault access code 1343 | -10/Exiles | Opened EX-Vault 1381 | -10/Exiles | Warned to stay clear of 0b10 Research branches 1424 | -10/Exiles | Met EX-DEC 1604 | -10/Exiles | Found Deploy-a-Sentry 1607 | -10/Exiles | Found Deploy-a-Sentry 1610 | -10/Exiles | Found Deploy-a-Sentry 1752 | -10/Exiles | Discovered new exit (range 10) 1766 | -10/Exiles | Left Exiles lab with Deploy-a-Sentry 1766 | -10/Exiles | Entered Mines 1768 | -9/Mines | DAS Turret deployed 1771 | -9/Mines | Core integrity fell below 50% 1851 | -9/Mines | Learned location of Zion (-7) 1864 | -9/Mines | Discovered new exit (range 6) 1868 | -9/Mines | Assembled infested the area 1873 | -9/Mines | Entered Materials 1873 | -8/Materials | Evolved 4 slots: Propulsion x2, Utility x2 1873 | -8/Materials | Identified Decoy Drone Bay 1874 | -8/Materials | Identified exit to Factory 1972 | -8/Materials | Discovered exit to Factory (range 55) 2167 | -8/Materials | DAS Turret deployed 2169 | -8/Materials | DAS Turret deployed 2735 | -8/Materials | Entered Factory 2735 | -7/Factory | Evolved 2 slots: Propulsion x2 2755 | -7/Factory | Identified exit to DSF 3120 | -7/Factory | Entered DSF 3138 | -7/DSF | Additional patrols routed to DSF 3159 | -7/DSF | Discovered new exit (range 14) 3168 | -7/DSF | Self-destructed Last Messages --------------- 03145_ Field strength at 20. 03146_ Field strength at 10. 03147_ Field strength at 5. 03148_ Stasis field depleted. 03149_ ALERT: Suspicious intruders detected, dispatching Cutter reinforcements to area. 03152_ Knocked back. 03154_ Imp. Deuterium Engine destroyed. 03154_ VTOL Module destroyed. 03154_ Knocked back. 03156_ VTOL Module severed. 03156_ Ion Engine destroyed. 03156_ Knocked back. 03157_ Acquired Imp. Terrain Scanner. 03158_ Flail severed. 03159_ EXIT=FOUND 03162_ VTOL Module severed. 03164_ Adv. Weight Redist. System severed. 03168_ VTOL Module severed. [Achievement: Achiever] Map ----- +----------------------------------------------------+ | ????????????????????????????????????? | | ????????????????????????????????????? | | ???????#########????????????????????? | | ########] ]]]!!#????????????????????? | | #==# #! ]]]!!#????????????????????? | | #????????????????????? | | #????????????????????? | | #==#===### ###????????????????????? | | #==#===### ###????????????????????? | | ######## !!#????????????????????? | | #??????# !!#????????????????????? | | #??????# !!#????????????????????? | | #??????### ###????????????????????? | | ???????#[[ %!!#????????????????????? | | ???????#[[ !!#????????????????????? | | #??????#[[ !!#????????????????????? | | #??????### #################??????? | | ???#!???## ###!!!#===## !!#??????? | | ///#!!!## ##!!!#===## !!#??????? | | H % #??????? | | % #??????? | | = #??????? | | !!!#]]]## ##!!!#!!/## #??????? | | !??#]]]?## ###!!!#!!!## #??????? | | ???###???# #?##########cc###??????? | | ????????!! =????????# !@ #???????? | | ???????#!! =????????# = #???????? | | ???????#!! =????????# #???????? | | ???????### #????????### ##???????? | | ?????????] ???????????/ ????????? | | ?????????] ???????????/ ????????? | | ????????]] ???????????# ##???????? | | ????????## ???????????# #????????? | | ?????????# ??????????? "????????? | | ????????? ???????c??c "????????? | | ????????? ??????????? <"????????? | | ????????????????????????""""????????? | | ????????????????????????""""????????? | | ????????????????????????????????????? | | ????????????????????????????????????? | | ????????????????????????????????????? | | ????????????????????????????????????? | | ????????????????????????????????????? | | ????????????????????????????????????? | | ????????????????????????????????????? | | ????????????????????????????????????? | | | | | | | | | +----------------------------------------------------+ Best States ------------- Heat Dissipation 34 Energy Generation 16 Energy Capacity 290 Matter Stores 300 Matter Capacity 300 Sight Range 16 Terrain Scan Density 10 Jamming Range 12 Additional Mass Support 9 Evasion (%) 66 Recoil Reduction 4 Item Schematics ----------------- None Robot Schematics ------------------ None Fabricated ------------ Nothing Alien Tech Used ----------------- None Achievements -------------- Achiever Can't Catch Me Challenges ------------ None Game ------ Seed PiercingAssembledMapper Manual? 0 Play Time 00:31:18 Cumulative 34.8 hours Start 2024.04.18 @ 14:00:25 End 2024.04.18 @ 14:31:08 Sessions 1 Manual Loads 0 Difficulty Rogue Special Mode None Game No. 68 Rogue 68 Adventurer 0 Explorer 0 Win Type - Total 0 Types 0/0/0/0/0/0/0/0/0 Lore% 24 Gallery% 28 Achievement% 25 Wizard Run 0 Options --------- Layout 0 ASCII 0 Keyboard 0 Movement Mouse Keybinds 0 Fullscreen 1 Font 24/Smallcaps Map View 76x50 Zoom Use 0% Tactical HUD 1 Map Filters NONE Filters NONE Steam 1 RUN: de1cdbc3-9730-4406-8da1-f38adda5b2a8